Cogmind - Beta 12 @@@ ROGUE MODE // 2023.04.19 @ 12:50:29 Player: ZLD1 Result: Self-destructed Performance ------------- Evolutions (2) 1000 Regions Visited (3) 600 Robots Destroyed (31) 155 Value Destroyed (563) 563 Prototype IDs (0) 0 Alien Tech Used (0) 0 Bonus (0) 0 TOTAL SCORE: 2318 Bonus ------- None Cogmind --------- Core Integrity 531/550 Matter 4/300 Energy 275/275 System Corruption 0% Temperature Cool (0) Movement Walking (130) Location -8/Materials Parts ------- > --- POWER (1) -------- Deuterium Engine > --- PROPULSION (3) --- Titanium Leg Titanium Leg > --- UTILITY (5) ------ Medium Storage Unit Structural Scanner Improved Sensor Array Light Armor Plating > --- WEAPON (2) ------- Rocket Launcher Mini Grenade Launcher > --- INVENTORY (10) --- Improved Ion Engine Titanium Leg Titanium Leg Small Storage Unit Medium Storage Unit Flak Cannon EMP Blaster EMP Blaster Heavy Hammer Heavy Hammer Peak State ------------ > --- POWER ------------ Deuterium Engine > --- PROPULSION ------- Titanium Leg Titanium Leg > --- UTILITY ---------- Medium Storage Unit Structural Scanner Improved Sensor Array Light Armor Plating > --- WEAPON ----------- Rocket Launcher Mini Grenade Launcher > --- INVENTORY -------- Improved Ion Engine Titanium Leg Titanium Leg Small Storage Unit Medium Storage Unit Flak Cannon EMP Blaster EMP Blaster Heavy Hammer Heavy Hammer [Rating: 21] Favorites ----------- Power Ion Engine Engine Ion Engine Propulsion Aluminum Leg Leg Aluminum Leg Utility Medium Storage Unit Device Structural Scanner Storage Medium Storage Unit Protection Light Armor Plating Weapon Assault Rifle Ballistic Gun Assault Rifle Launcher Mini Grenade Launcher Build | -11 -10 -9 -8 ------- Run | Jun Mat Mat Mat Slots Evolved 4 | . . 2 2 Power . | . . . . Propulsion 1 | . . . 1 Utility 3 | . . 2 1 Weapon . | . . . . Parts Attached 17 | 6 2 7 2 Power 3 | 1 . 2 . Engine 3 | 1 . 2 . Core . | . . . . Reactor . | . . . . Propulsion 4 | 2 . 2 . Treads . | . . . . Leg 4 | 2 . 2 . Wheel . | . . . . Hover . | . . . . Flight . | . . . . Utility 5 | 1 2 1 1 Device 2 | . 1 . 1 Storage 2 | 1 1 . . Processor . | . . . . Hackware . | . . . . Protection 1 | . . 1 . Artifact . | . . . . Weapon 5 | 2 . 2 1 Energy Gun . | . . . . Energy Cannon . | . . . . Ballistic Gun 2 | 2 . . . Ballistic Cannon . | . . . . Launcher 3 | . . 2 1 Special Weapon . | . . . . Impact Weapon . | . . . . Slashing Weapon . | . . . . Piercing Weapon . | . . . . Special Melee Weapon . | . . . . Unidentified Prototypes . | . . . . Parts Lost 1 | . . 1 . Power . | . . . . Propulsion . | . . . . Utility . | . . . . Weapon 1 | . . 1 . Highest Loss Streak 1 | . . 1 . To Critical Strikes . | . . . . Average Slot Usage (%) 84 | . 87 85 74 Engine 11 | . 14 11 9 Leg 23 | . 28 22 18 Device 8 | . 2 11 12 Storage 11 | . 14 11 9 Protection 5 | . . 9 9 Ballistic Gun 11 | . 28 3 . Launcher 11 | . . 17 16 Naked Turns . | . . . . Heaviest Build 29 | 14 20 27 29 Greatest Support 34 | 20 20 34 34 Greatest Overweight (x) 1 | . . 1 . Average Overweight (x) . | . . . . Largest Inventory Capacity 10 | 8 10 10 10 Average Capacity 9 | 6 9 10 10 Most Carried 10 | 5 10 10 10 Average Carried 8 | 3 7 9 9 Final Capacity 10 | 8 10 10 10 Final Carried 10 | 4 10 10 10 Class Distribution -------------------- 100% | Mutant Dominant Class ---------------- Mutant | -10/Materials Mutant | -9/Materials Mutant | -8/Materials Resources | -11 -10 -9 -8 ----------- Run | Jun Mat Mat Mat Matter Collected 445 | 209 86 74 76 Remotely . | . . . . Salvage Created 625 | . 152 300 173 Parts 60 | . 17 34 9 Haulers Intercepted 1 | . . . 1 Recyclers Shooed 3 | . 3 . . Parts Field Recycled . | . . . . Retrieved Matter . | . . . . Parts Self-Destructed . | . . . . Prevented . | . . . . Kills | -11 -10 -9 -8 ------- Run | Jun Mat Mat Mat Combat Hostiles Destroyed 15 | . 9 3 3 Guns 9 | . 9 . . AOE 6 | . . 3 3 Classes Destroyed 10 | . 2 5 3 Worker 2 | . . 2 . Builder 4 | . . 3 1 Hauler 1 | . . . 1 Recycler 2 | . . 2 . Mechanic 1 | . . . 1 Operator 1 | . . 1 . Watcher 5 | . . 3 2 Swarmer 8 | . 8 . . Grunt 6 | . 1 3 2 Duelist 1 | . . . 1 Best Kill Streak 8 | . 8 6 5 Combat Bots Only 8 | . 8 3 3 Max Kills in Single Turn 4 | . 1 4 3 Gunslinging . | . . . . Exploded 2 | . . 2 2 Melee . | . . . . Uniques/NPCs Destroyed . | . . . . Combat | -11 -10 -9 -8 -------- Run | Jun Mat Mat Mat Damage Taken 497 | . 331 80 86 Core 87 | . 68 . 19 Absorbed by Shields . | . . . . Core Remaining (%) 90 | 100 72 100 . Volleys Fired 43 | . 27 8 8 Largest 2 | . 2 2 2 Hottest 63 | . 40 60 63 Shots Fired 81 | . 54 16 11 Gun 60 | . 54 6 . Cannon . | . . . . Launcher 21 | . . 10 11 Special . | . . . . Kinetic 60 | . 54 6 . Thermal . | . . . . Explosive 21 | . . 10 11 Electromagnetic . | . . . . Robot Hit Streak 5 | . 5 4 2 Robot Miss Streak 4 | . 4 1 1 Penetration Max . | . . . . Secondary Targets 4 | . 4 . . Max Gunslinging Chain 1 | . 1 . . Shots Hit Robots 29 | . 21 3 5 Core Hits 48 | . 10 22 16 Critical Kills . | . . . . Critical Parts Destroyed 1 | . 1 . . Critical Strikes 1 | . 1 . . Destroy 1 | . 1 . . Melee Attacks . | . . . . Impact . | . . . . Slashing . | . . . . Piercing . | . . . . Sneak Attacks . | . . . . Combat Hostiles . | . . . . Follow-up Attacks . | . . . . Damage Inflicted 1549 | . 284 639 626 Guns 318 | . 284 34 . Cannons . | . . . . Explosions 1211 | . . 585 626 Melee . | . . . . Ramming 20 | . . 20 . Kinetic 318 | . 284 34 . Thermal . | . . . . Explosive 1211 | . . 585 626 Electromagnetic . | . . . . Impact . | . . . . Slashing . | . . . . Piercing . | . . . . Highest Corruption . | . . . . Average Corruption . | . . . . Corruption Purged . | . . . . Corruption Blocked . | . . . . Overload Shots . | . . . . Overflow Damage 47 | . . 31 16 Projectiles . | . . . . Explosions 47 | . . 31 16 Melee . | . . . . Knockbacks . | . . . . Impact . | . . . . Kinetic . | . . . . Secondary . | . . . . Self-Inflicted Damage 52 | . . 49 3 Shots 2 | . . 1 1 Rammed . | . . . . Targets Rammed 6 | . . 5 1 Kicked 6 | . . 5 1 Crushed . | . . . . Highest Temperature 8 | . . 6 8 Average Temperature 3 | . . 2 6 Received Heat Transfer 75 | . 30 9 36 Siege Activations . | . . . . Robots Corrupted . | . . . . Combat Hostiles . | . . . . Parts Fried . | . . . . Impact Corruptions . | . . . . Robots Melted . | . . . . Combat Hostiles . | . . . . Parts Melted . | . . . . Heat Transferred . | . . . . Parts Sabotaged . | . . . . Parts Stolen . | . . . . Parts Stripped . | . . . . Power Chain Reactions . | . . . . Missiles Intercepted . | . . . . Alert | -11 -10 -9 -8 ------- Run | Jun Mat Mat Mat Peak Influence 394 | . 240 326 394 Initial 137 | . . 101 137 Average 158 | . 99 188 305 Maximum Alert Level 1 | . 1 1 1 Low Security (%) 58 | 100 72 52 17 Level 1 41 | . 27 47 82 Level 2 . | . . . . Level 3 . | . . . . Level 4 . | . . . . Level 5 . | . . . . High Security . | . . . . Max Security . | . . . . Squads Dispatched 3 | . 1 1 1 Investigation . | . . . . Extermination . | . . . . Reinforcement 3 | . 1 1 1 Assault . | . . . . Garrison . | . . . . Intercept . | . . . . Searches Triggered . | . . . . Construction Impeded 2 | . . 1 1 Haulers Reinforced . | . . . . Active Scanning Responses . | . . . . Cargo Convoy Interrupts . | . . . . Stealth | -11 -10 -9 -8 --------- Run | Jun Mat Mat Mat Distress Signals 1 | . . . 1 Communications Jammed . | . . . . Distress Signals . | . . . . Times Spotted 32 | . 13 8 11 Peak Tracking Total 3 | . 3 3 3 Tactical Retreats 1 | . 1 . . Traps | -11 -10 -9 -8 ------- Run | Jun Mat Mat Mat Traps Triggered . | . . . . Indirectly . | . . . . Trap Hack Attempts . | . . . . Triggered . | . . . . Disarmed . | . . . . Reprogrammed . | . . . . Reused . | . . . . Traps Extracted . | . . . . Installed . | . . . . Triggered . | . . . . Machines | -11 -10 -9 -8 ---------- Run | Jun Mat Mat Mat Machines Disabled 3 | . . . 3 Max in Single Turn 1 | . . . 1 Machines Repaired . | . . . . Machines Sabotaged . | . . . . Overloaded Fab Kills . | . . . . Hacking | -11 -10 -9 -8 --------- Run | Jun Mat Mat Mat Machines Accessed . | . . . . Terminals . | . . . . Fabricators . | . . . . Repair Stations . | . . . . Recycling Units . | . . . . Scanalyzers . | . . . . Garrison Access . | . . . . Total Hacks . | . . . . Successful . | . . . . Failed . | . . . . Catastrophic . | . . . . Database Lockouts . | . . . . Manual . | . . . . Terminals . | . . . . Fabricators . | . . . . Repair Stations . | . . . . Recycling Units . | . . . . Scanalyzers . | . . . . Garrison Access . | . . . . Terminal Hacks . | . . . . Fabricator Hacks . | . . . . Repair Station Hacks . | . . . . Recycling Unit Hacks . | . . . . Scanalyzer . | . . . . Garrison Access Hacks . | . . . . Unauthorized Hacks . | . . . . Terminals . | . . . . Fabricators . | . . . . Repair Stations . | . . . . Recycling Units . | . . . . Scanalyzers . | . . . . Garrison Access . | . . . . Data Cores Recovered . | . . . . Used . | . . . . Hacking Detections . | . . . . Full Trace Events . | . . . . Feedback Events . | . . . . Feedback Blocked . | . . . . Robot Schematics Acquired . | . . . . Robots Built . | . . . . Authchips . | . . . . Time . | . . . . Total Robot Build Rating . | . . . . Part Schematics Acquired . | . . . . Parts Built . | . . . . Authchips . | . . . . Time . | . . . . Total Part Build Rating . | . . . . Parts Repaired . | . . . . Time . | . . . . Parts Recycled . | . . . . Recycled Matter . | . . . . Retrieved Matter . | . . . . Retrieved Components . | . . . . Parts Scanalyzed . | . . . . Part Schematics Acquired . | . . . . Parts Damaged . | . . . . Bothacking | -11 -10 -9 -8 ------------ Run | Jun Mat Mat Mat Used RIF Installer . | . . . . Robots Hacked . | . . . . Non-combat . | . . . . Combat . | . . . . Robot Hacks Applied . | . . . . Relay Couplers Released . | . . . . Fabnet Peak Effective % . | . . . . Robots Rewired . | . . . . Allies Hacked . | . . . . Hacks Repelled . | . . . . Allies | -11 -10 -9 -8 -------- Run | Jun Mat Mat Mat Total Allies . | . . . . Largest Group . | . . . . Highest-Rated Group . | . . . . Highest-Rated Ally . | . . . . Total Orders . | . . . . Ally Attacks . | . . . . Total Damage . | . . . . Kills . | . . . . Allies Corrupted . | . . . . Allies Melted . | . . . . Intel | -11 -10 -9 -8 ------- Run | Jun Mat Mat Mat Robot Analysis Total . | . . . . Derelict Logs Recovered . | . . . . Drone Launches . | . . . . Drone Recoveries . | . . . . Exploration | -11 -10 -9 -8 ------------- Run | Jun Mat Mat Mat Turns Passed 829 | 95 263 331 140 Spaces Moved 489 | 72 145 183 89 Core 10 | 10 . . . Treads . | . . . . Legs 479 | 62 145 183 89 Wheels . | . . . . Hover . | . . . . Flight . | . . . . Fastest Speed 50 | 50 120 120 130 Average Speed 132 | 110 120 151 130 Slowest Speed 190 | 120 120 190 130 Overloaded Moves . | . . . . Propulsion Burnouts . | . . . . Robots Hopped . | . . . . Cave-ins Triggered . | . . . . Exploration Rate (%) 15 | 4 26 20 12 Regions Visited 3 Branch Regions . Pre-discovered Areas . | . . . . Known Exits Taken . | . . . . Unknown Exits Taken 3 | 1 1 1 . Scrap Searched . | . . . . Spaces Dug . | . . . . Terrain Destroyed 171 | . . 74 97 Melee . | . . . . Projectile . | . . . . AOE 171 | . . 74 97 Terrain Rammed . | . . . . Walls Destroyed . | . . . . Machines Disabled . | . . . . Actions | -11 -10 -9 -8 --------- Run | Jun Mat Mat Mat Total 591 | 87 180 223 101 Wait . | . . . . Move 486 | 71 144 182 89 Hop . | . . . . Pick Up 26 | 10 6 9 1 Fast Attach 2 | . 1 . 1 Attach 9 | 6 1 1 1 Detach 1 | . 1 . . Swap 6 | . . 6 . Drop 12 | . . 12 . Fire 43 | . 27 8 8 Melee . | . . . . Ram . | . . . . Kick 6 | . . 5 1 Crush . | . . . . Escape Stasis . | . . . . Rewire . | . . . . Trap . | . . . . Miscellaneous . | . . . . Route ------- -11/Junkyard -10/Materials -9/Materials -8/Materials History --------- Turn | Location | Event 3 | -11/Junkyard | Discovered new exit (range 15) 96 | -11/Junkyard | Entered Materials 310 | -10/Materials | Build established: Mutant 311 | -10/Materials | Destroyed 8 combat bots 340 | -10/Materials | Discovered new exit (range 16) 359 | -10/Materials | Entered another Materials area 359 | -9/Materials | Evolved 2 slots: Utility x2 619 | -9/Materials | Discovered new exit (range 8) 690 | -9/Materials | Entered another Materials area 690 | -8/Materials | Evolved 2 slots: Propulsion x1, Utility x1 830 | -8/Materials | Self-destructed Last Messages --------------- 00795_ U-05 Engineer lays Concrete. 00799_ W-25 Informer destroyed. 00799_ Electrolysis Chamber disabled. 00799_ U-05 Engineer lays Concrete. 00802_ K-01 Serf collects debris. 00802_ U-05 Engineer lays Concrete. 00804_ The unstable cave ceiling collapses. 00807_ K-01 Serf collects debris. 00811_ Acquired 1 matter. 00813_ The unstable cave ceiling collapses. 00814_ K-01 Serf collects debris. 00822_ T-07 Excavator is excavating. 00822_ K-01 Serf collects debris. 00826_ T-07 Excavator is excavating. 00826_ Kicked U-05 Engineer out of the way. 00826_ K-01 Serf collects debris. 00827_ ALERT: Construction progress impeded, dispatching reinforcements to local area. 00828_ K-01 Serf collects debris. 00830_ T-07 Excavator is excavating. Map ----- +----------------------------------------------------+ | ?????????????????????????????????????????????????? | | ?????????????????????????????????????????????????? | | ?????????????????????????????????????????????????? | | ?????????????????????????????????????????????????? | | ?????????????????????????????????????????????????? | | ????????????????????????????????????????????? ???? | | ???????????????????????????????????????????## ???? | | ???????????????????????????????????????????## ???? | | ?????????????????????###???????????????????## ?? | | ???????????????????#####???????????????????##^#### | | ???????????????????### ?????????? ######## #### | | ??????????????????? ?????????? ######## # # | | ????????????????????? Y ?????????? # # # # | | ?????????????????????? ?????????? # # # | | ?????????????????????#r ?????????? # + # | | ???????????????????#### ??? ?? # " " # # | | ???????????????????#### ##?##+##??## "R" # # | | ???????????????????## # ##?## ##???? """ # # | | ???????????????????## t u##?## ############# # | | ????????????????????# # ##?## ############# #= ! | | ?????????????????????## ##### # ####### # | | ????????????????????? # ##### # ###### #### | | ??????????????## ???? # ## | | ??????????????## ???? # ! | | ??????????????## "" # ? | | ??????????????## k @##### # * ### | | ??????????????## # # # | | ??????????????###????## # " "" # # ? | | ??????????????## ???? # # T """ # # ? | | ????????????????????? # # " """ # ]]] ? | | ????????????????????? # # ]] ? | | ????????????????????? # # """ # ]] ? | | ????????????????????? + # ! """ # ### ? | | ????????????????????? # # ?""" # ? | | ?????????????????????## # ? #""""" # ## ? | | ????????????????????? g ###?######""""" # ##?? | | ?????????????????????? g ###?######""""" # ##?? | | ????????????????????? a ????????##"???? # ##?? | | ?????????????????????##o ???????????????? ?? ##?? | | ?????????????????????## ??????????????????? ##?? | | ?????????????????????## ???????????????????????? | | ?????????????????????????????????????????????????? | | ?????????????????????????????????????????????????? | | ?????????????????????????????????????????????????? | | ?????????????????????????????????????????????????? | | ?????????????????????????????????????????????????? | | ?????????????????????????????????????????????????? | | ?????????????????????????????????????????????????? | | ?????????????????????????????????????????????????? | | ?????????????????????????????????????????????????? | +----------------------------------------------------+ Best States ------------- Heat Dissipation 31 Energy Generation 14 Energy Capacity 275 Matter Stores 249 Matter Capacity 300 Sight Range 16 Robot Scan Range 15 Terrain Scan Density 10 Armor Coverage 150 Evasion (%) 55 Item Schematics ----------------- None Robot Schematics ------------------ None Fabricated ------------ Nothing Alien Tech Used ----------------- None Achievements -------------- None Challenges ------------ None Game ------ Seed BottomlessSensorDoublenader Manual? 0 Play Time 00:10:02 Cumulative 37.0 hours Start 2023.04.19 @ 12:42:24 End 2023.04.19 @ 12:50:29 Sessions 1 Manual Loads 0 Difficulty Rogue Special Mode None Game No. 81 Rogue 81 Adventurer 0 Explorer 0 Win Type - Total 0 Types 0/0/0/0/0/0/0/0/0 Lore% 24 Gallery% 39 Achievement% 29 Wizard Run 0 Options --------- ASCII 0 Keyboard 0 Movement Mouse Keybinds 0 Fullscreen 1 Font 24/Smallcaps Map View 64x52 Tactical HUD 1 Map Filters NONE Filters NONE Steam 1 RUN: 5ac21384-996e-423d-8364-54f46967a3e2